[Event "Titled Tuesday Blitz August 1 Early 2023"]
[White "Pham, Le Thao Nguyen"]
[Black "Li, Eric"]
[WhiteFideId "12401226"]
[BlackFideId "30939941"]
[WhiteElo "2621"]
[BlackElo "2380"]
[Result "0-1"]
[Round "4"]
[TimeControl "180+1"]
[Date "2023.08.01"]
[WhiteClock "0:00:02"]
[BlackClock "0:00:49"]
[Board "111"]

1. d4 {[%clk 0:02:53]}  d5 {[%clk 0:02:56]} 2. c4 {[%clk 0:02:51]}  dxc4 {[%clk 0:02:52]} 3. e4 {[%clk 0:02:44]}  b5 {[%clk 0:02:51]} 4. a4 {[%clk 0:02:40]}  c6 {[%clk 0:02:49]} 5. axb5 {[%clk 0:02:37]}  cxb5 {[%clk 0:02:50]} 6. b3 {[%clk 0:02:38]}  e5 {[%clk 0:02:44]} 7. d5 {[%clk 0:02:26]}  Nf6 {[%clk 0:02:39]} 8. bxc4 {[%clk 0:01:44]}  Nxe4 {[%clk 0:02:35]} 9. cxb5 {[%clk 0:01:42]}  Bb4+ {[%clk 0:02:33]} 10. Bd2 {[%clk 0:01:32]}  Nxd2 {[%clk 0:02:31]} 11. Nxd2 {[%clk 0:01:32]}  Qxd5 {[%clk 0:02:32]} 12. Qc2 {[%clk 0:01:15]}  O-O {[%clk 0:02:28]} 13. Ra4 {[%clk 0:01:05]}  a5 {[%clk 0:02:24]} 14. bxa6 {[%clk 0:01:00]}  Nc6 {[%clk 0:02:19]} 15. Nf3 {[%clk 0:01:00]}  Rd8 {[%clk 0:02:04]} 16. Bc4 {[%clk 0:00:58]}  Qd6 {[%clk 0:01:50]} 17. O-O {[%clk 0:00:38]}  Bxd2 {[%clk 0:01:49]} 18. Rd1 {[%clk 0:00:32]}  Nd4 {[%clk 0:01:49]} 19. Nxd4 {[%clk 0:00:32]}  Bb4 {[%clk 0:01:44]} 20. Rxb4 {[%clk 0:00:25]}  Qxb4 {[%clk 0:01:40]} 21. Nc6 {[%clk 0:00:21]}  Rxd1+ {[%clk 0:01:38]} 22. Qxd1 {[%clk 0:00:22]}  Qf8 {[%clk 0:01:37]} 23. Qd3 {[%clk 0:00:12]}  e4 {[%clk 0:01:33]} 24. Qe2 {[%clk 0:00:11]}  Bd7 {[%clk 0:01:24]} 25. Ne5 {[%clk 0:00:10]}  Be6 {[%clk 0:01:13]} 26. Bxe6 {[%clk 0:00:11]}  fxe6 {[%clk 0:01:14]} 27. h3 {[%clk 0:00:11]}  Qd6 {[%clk 0:01:06]} 28. Qh5 {[%clk 0:00:11]}  Rf8 {[%clk 0:00:58]} 29. a7 {[%clk 0:00:11]}  Qa6 {[%clk 0:00:53]} 30. Qg4 {[%clk 0:00:10]}  Qa1+ {[%clk 0:00:48]} 31. Kh2 {[%clk 0:00:02]}  Qxe5+ {[%clk 0:00:49]} 0-1


[Site "https://www.chess.com"]

[Event "Titled Tuesday Blitz August 1 Early 2023"]
[White "Prydun, Andriy"]
[Black "Jain Kashish Manoj"]
[WhiteFideId "14145898"]
[BlackFideId "35081098"]
[WhiteElo "2357"]
[BlackElo "2609"]
[Result "0-1"]
[Round "4"]
[TimeControl "180+1"]
[Date "2023.08.01"]
[WhiteClock "0:00:00"]
[BlackClock "0:00:57"]
[Board "114"]

1. e4 {[%clk 0:02:57]}  c5 {[%clk 0:02:59]} 2. Nf3 {[%clk 0:02:55]}  d6 {[%clk 0:03:00]} 3. c3 {[%clk 0:02:54]}  Nf6 {[%clk 0:03:00]} 4. h3 {[%clk 0:02:52]}  g6 {[%clk 0:03:00]} 5. Bd3 {[%clk 0:02:51]}  Bg7 {[%clk 0:03:00]} 6. Bc2 {[%clk 0:02:51]}  O-O {[%clk 0:03:00]} 7. O-O {[%clk 0:02:51]}  Nc6 {[%clk 0:03:00]} 8. d3 {[%clk 0:02:46]}  e5 {[%clk 0:02:46]} 9. a3 {[%clk 0:02:45]}  a5 {[%clk 0:02:41]} 10. a4 {[%clk 0:02:36]}  h6 {[%clk 0:02:35]} 11. Be3 {[%clk 0:02:30]}  b6 {[%clk 0:02:09]} 12. Na3 {[%clk 0:02:25]}  d5 {[%clk 0:02:03]} 13. Re1 {[%clk 0:02:17]}  Bb7 {[%clk 0:01:58]} 14. Qe2 {[%clk 0:01:00]}  Re8 {[%clk 0:01:52]} 15. Rad1 {[%clk 0:00:59]}  Qd7 {[%clk 0:01:48]} 16. Bc1 {[%clk 0:00:50]}  Rad8 {[%clk 0:01:47]} 17. Nd2 {[%clk 0:00:46]}  Ba6 {[%clk 0:01:38]} 18. Nb5 {[%clk 0:00:41]}  Na7 {[%clk 0:01:23]} 19. Nxa7 {[%clk 0:00:28]}  Qxa7 {[%clk 0:01:24]} 20. Qf3 {[%clk 0:00:28]}  Qa8 {[%clk 0:01:11]} 21. Bb3 {[%clk 0:00:19]}  Bb7 {[%clk 0:01:12]} 22. Qe2 {[%clk 0:00:19]}  Rd7 {[%clk 0:01:06]} 23. exd5 {[%clk 0:00:06]}  Nxd5 {[%clk 0:01:05]} 24. Ne4 {[%clk 0:00:06]}  f5 {[%clk 0:00:58]} 25. Ng3 {[%clk 0:00:04]}  Kh7 {[%clk 0:00:58]} 26. Bc4 {[%clk 0:00:00]}  Rde7 {[%clk 0:00:57]} 0-1


[Site "https://www.chess.com"]

[Event "Titled Tuesday Blitz August 1 Early 2023"]
[White "Principe, Gerson"]
[Black "Georg, Heinz"]
[WhiteFideId "3804550"]
[BlackFideId "4607295"]
[WhiteElo "2607"]
[BlackElo "2323"]
[Result "1-0"]
[Round "4"]
[TimeControl "180+1"]
[Date "2023.08.01"]
[WhiteClock "0:00:14"]
[BlackClock "0:00:02"]
[Board "116"]

1. Nf3 {[%clk 0:03:00]}  f5 {[%clk 0:02:59]} 2. d4 {[%clk 0:02:58]}  Nf6 {[%clk 0:02:59]} 3. g3 {[%clk 0:02:59]}  g6 {[%clk 0:02:59]} 4. Bg2 {[%clk 0:03:00]}  Bg7 {[%clk 0:02:59]} 5. O-O {[%clk 0:03:01]}  O-O {[%clk 0:03:00]} 6. c4 {[%clk 0:03:02]}  d6 {[%clk 0:03:00]} 7. Nc3 {[%clk 0:03:00]}  Qe8 {[%clk 0:03:00]} 8. d5 {[%clk 0:02:46]}  a5 {[%clk 0:03:00]} 9. Nd4 {[%clk 0:02:44]}  Na6 {[%clk 0:02:57]} 10. Bg5 {[%clk 0:02:28]}  Bd7 {[%clk 0:02:53]} 11. Rc1 {[%clk 0:02:26]}  Nc5 {[%clk 0:02:51]} 12. Qd2 {[%clk 0:02:20]}  Ng4 {[%clk 0:02:40]} 13. h3 {[%clk 0:02:08]}  Ne5 {[%clk 0:02:39]} 14. b3 {[%clk 0:02:06]}  c6 {[%clk 0:02:31]} 15. Bh6 {[%clk 0:02:01]}  Bxh6 {[%clk 0:01:45]} 16. Qxh6 {[%clk 0:02:02]}  Nf7 {[%clk 0:01:46]} 17. Qd2 {[%clk 0:02:00]}  e5 {[%clk 0:01:46]} 18. dxe6 {[%clk 0:01:57]}  Nxe6 {[%clk 0:01:46]} 19. Nxe6 {[%clk 0:01:53]}  Bxe6 {[%clk 0:01:45]} 20. e3 {[%clk 0:01:53]}  Qe7 {[%clk 0:01:41]} 21. Rfd1 {[%clk 0:01:53]}  Rfd8 {[%clk 0:01:37]} 22. Qd4 {[%clk 0:01:37]}  Rd7 {[%clk 0:01:18]} 23. Rd2 {[%clk 0:01:28]}  g5 {[%clk 0:01:05]} 24. Rcd1 {[%clk 0:01:26]}  h6 {[%clk 0:01:01]} 25. Na4 {[%clk 0:01:18]}  Ra6 {[%clk 0:00:39]} 26. Qb2 {[%clk 0:01:06]}  f4 {[%clk 0:00:26]} 27. exf4 {[%clk 0:01:02]}  gxf4 {[%clk 0:00:26]} 28. gxf4 {[%clk 0:00:48]}  Qh4 {[%clk 0:00:26]} 29. Qc3 {[%clk 0:00:40]}  Qxf4 {[%clk 0:00:20]} 30. Qg3+ {[%clk 0:00:40]}  Qxg3 {[%clk 0:00:19]} 31. fxg3 {[%clk 0:00:41]}  b5 {[%clk 0:00:15]} 32. cxb5 {[%clk 0:00:21]}  cxb5 {[%clk 0:00:15]} 33. Nc3 {[%clk 0:00:20]}  b4 {[%clk 0:00:13]} 34. Ne4 {[%clk 0:00:20]}  Kg7 {[%clk 0:00:12]} 35. g4 {[%clk 0:00:17]}  Rc6 {[%clk 0:00:11]} 36. Ng5 {[%clk 0:00:14]}  hxg5 {[%clk 0:00:10]} 37. Bxc6 {[%clk 0:00:14]}  Rc7 {[%clk 0:00:09]} 38. Bd5 {[%clk 0:00:13]}  Bd7 {[%clk 0:00:08]} 39. Bxf7 {[%clk 0:00:13]}  Kxf7 {[%clk 0:00:08]} 40. Rxd6 {[%clk 0:00:14]}  Bb5 {[%clk 0:00:08]} 41. R6d5 {[%clk 0:00:13]}  Bc6 {[%clk 0:00:08]} 42. Rxg5 {[%clk 0:00:13]}  Kf6 {[%clk 0:00:08]} 43. Rc5 {[%clk 0:00:13]}  Rc8 {[%clk 0:00:06]} 44. Rdc1 {[%clk 0:00:13]}  Bd7 {[%clk 0:00:05]} 45. Rxc8 {[%clk 0:00:13]}  Bxc8 {[%clk 0:00:06]} 46. Rxc8 {[%clk 0:00:13]}  Ke5 {[%clk 0:00:02]} 47. Ra8 {[%clk 0:00:14]} 1-0


[Site "https://www.chess.com"]

[Event "Titled Tuesday Blitz August 1 Early 2023"]
[White "Sturt, Raven"]
[Black "Ferro, Mario"]
[WhiteFideId "2007304"]
[BlackFideId "810290"]
[WhiteElo "2607"]
[BlackElo "2310"]
[Result "1/2-1/2"]
[Round "4"]
[TimeControl "180+1"]
[Date "2023.08.01"]
[WhiteClock "0:00:48"]
[BlackClock "0:00:17"]
[Board "117"]

1. d4 {[%clk 0:03:00]}  Nf6 {[%clk 0:02:56]} 2. c4 {[%clk 0:03:01]}  c5 {[%clk 0:02:56]} 3. Nf3 {[%clk 0:03:00]}  cxd4 {[%clk 0:02:55]} 4. Nxd4 {[%clk 0:03:01]}  Nc6 {[%clk 0:02:56]} 5. Nc3 {[%clk 0:02:59]}  g6 {[%clk 0:02:56]} 6. g3 {[%clk 0:02:58]}  Bg7 {[%clk 0:02:56]} 7. Bg2 {[%clk 0:02:59]}  O-O {[%clk 0:02:57]} 8. O-O {[%clk 0:03:00]}  d6 {[%clk 0:02:54]} 9. Nxc6 {[%clk 0:02:58]}  bxc6 {[%clk 0:02:55]} 10. Bxc6 {[%clk 0:02:58]}  Bh3 {[%clk 0:02:56]} 11. Bg2 {[%clk 0:02:56]}  Bxg2 {[%clk 0:02:55]} 12. Kxg2 {[%clk 0:02:57]}  Rc8 {[%clk 0:02:53]} 13. Qd3 {[%clk 0:02:56]}  Qc7 {[%clk 0:02:45]} 14. Bg5 {[%clk 0:02:46]}  Qxc4 {[%clk 0:02:42]} 15. Qxc4 {[%clk 0:02:47]}  Rxc4 {[%clk 0:02:42]} 16. Rac1 {[%clk 0:02:48]}  Rfc8 {[%clk 0:02:15]} 17. Rfd1 {[%clk 0:02:05]}  h6 {[%clk 0:02:03]} 18. Be3 {[%clk 0:02:03]}  a6 {[%clk 0:01:52]} 19. Rd4 {[%clk 0:01:55]}  Ng4 {[%clk 0:01:42]} 20. Rd3 {[%clk 0:01:44]}  Nxe3+ {[%clk 0:01:35]} 21. Rxe3 {[%clk 0:01:44]}  d5 {[%clk 0:01:33]} 22. Nxd5 {[%clk 0:01:21]}  Rxc1 {[%clk 0:01:34]} 23. Nxe7+ {[%clk 0:01:21]}  Kf8 {[%clk 0:01:27]} 24. Nxc8 {[%clk 0:01:22]}  Rxc8 {[%clk 0:01:26]} 25. Ra3 {[%clk 0:01:23]}  Rc6 {[%clk 0:01:15]} 26. b3 {[%clk 0:01:23]}  Bc3 {[%clk 0:01:12]} 27. Ra4 {[%clk 0:01:22]}  f5 {[%clk 0:01:07]} 28. e3 {[%clk 0:01:22]}  Kf7 {[%clk 0:01:07]} 29. h4 {[%clk 0:01:22]}  a5 {[%clk 0:01:07]} 30. Kf3 {[%clk 0:01:18]}  Kf6 {[%clk 0:01:07]} 31. Ke2 {[%clk 0:01:12]}  Rd6 {[%clk 0:01:06]} 32. Kf3 {[%clk 0:01:10]}  g5 {[%clk 0:00:53]} 33. hxg5+ {[%clk 0:01:10]}  hxg5 {[%clk 0:00:54]} 34. a3 {[%clk 0:01:10]}  g4+ {[%clk 0:00:53]} 35. Kg2 {[%clk 0:01:07]}  Rd2 {[%clk 0:00:52]} 36. Rc4 {[%clk 0:01:05]}  Bb2 {[%clk 0:00:27]} 37. b4 {[%clk 0:01:04]}  axb4 {[%clk 0:00:24]} 38. axb4 {[%clk 0:01:04]}  Ba3 {[%clk 0:00:21]} 39. e4 {[%clk 0:00:52]}  Rb2 {[%clk 0:00:20]} 40. exf5 {[%clk 0:00:50]}  Kxf5 {[%clk 0:00:20]} 41. Rc5+ {[%clk 0:00:48]}  Kf6 {[%clk 0:00:19]} 42. Rc6+ {[%clk 0:00:48]}  Kf5 {[%clk 0:00:19]} 43. Rc5+ {[%clk 0:00:48]}  Kf6 {[%clk 0:00:18]} 44. Rc6+ {[%clk 0:00:48]}  Ke5 {[%clk 0:00:17]} 45. Rc5+ {[%clk 0:00:48]}  Kf6 {[%clk 0:00:17]} 1/2-1/2


[Site "https://www.chess.com"]

[Event "Titled Tuesday Blitz August 1 Early 2023"]
[White "Jones, Gawain C B"]
[Black "Santos Flores, Alberto"]
[WhiteFideId "409561"]
[BlackFideId "3601234"]
[WhiteElo "2900"]
[BlackElo "2508"]
[Result "1-0"]
[Round "4"]
[TimeControl "180+1"]
[Date "2023.08.01"]
[WhiteClock "0:00:39"]
[BlackClock "0:00:00"]
[Board "118"]

1. e4 {[%clk 0:03:00]}  e6 {[%clk 0:03:00]} 2. d4 {[%clk 0:03:00]}  d5 {[%clk 0:03:00]} 3. Nd2 {[%clk 0:03:00]}  c5 {[%clk 0:03:00]} 4. Ngf3 {[%clk 0:02:57]}  cxd4 {[%clk 0:03:00]} 5. exd5 {[%clk 0:02:55]}  Qxd5 {[%clk 0:02:59]} 6. Bc4 {[%clk 0:02:56]}  Qd6 {[%clk 0:03:00]} 7. Bb3 {[%clk 0:02:56]}  Nf6 {[%clk 0:02:59]} 8. O-O {[%clk 0:02:52]}  Nc6 {[%clk 0:02:59]} 9. Nc4 {[%clk 0:02:52]}  Qc5 {[%clk 0:02:47]} 10. c3 {[%clk 0:02:52]}  Be7 {[%clk 0:02:34]} 11. cxd4 {[%clk 0:02:47]}  Qh5 {[%clk 0:02:34]} 12. Nce5 {[%clk 0:02:44]}  Nxe5 {[%clk 0:02:21]} 13. dxe5 {[%clk 0:02:43]}  Nd7 {[%clk 0:02:21]} 14. Ba4 {[%clk 0:02:42]}  O-O {[%clk 0:02:21]} 15. Bf4 {[%clk 0:02:32]}  a6 {[%clk 0:01:59]} 16. Rc1 {[%clk 0:02:27]}  b5 {[%clk 0:01:57]} 17. Bc2 {[%clk 0:02:26]}  Nb6 {[%clk 0:01:47]} 18. Be4 {[%clk 0:02:18]}  Nd5 {[%clk 0:01:47]} 19. Bxd5 {[%clk 0:02:14]}  exd5 {[%clk 0:01:48]} 20. Qxd5 {[%clk 0:02:07]}  Be6 {[%clk 0:01:48]} 21. Qb7 {[%clk 0:02:07]}  Rfe8 {[%clk 0:01:36]} 22. b3 {[%clk 0:02:01]}  Bf8 {[%clk 0:01:20]} 23. Nd4 {[%clk 0:01:57]}  Bf5 {[%clk 0:01:02]} 24. Nxf5 {[%clk 0:01:48]}  Qxf5 {[%clk 0:01:03]} 25. Bg3 {[%clk 0:01:47]}  h5 {[%clk 0:01:02]} 26. h3 {[%clk 0:01:45]}  g5 {[%clk 0:00:57]} 27. f4 {[%clk 0:01:34]}  h4 {[%clk 0:00:53]} 28. fxg5 {[%clk 0:01:31]}  Qg6 {[%clk 0:00:50]} 29. Rf6 {[%clk 0:01:29]}  Qg7 {[%clk 0:00:45]} 30. Bxh4 {[%clk 0:01:15]}  Be7 {[%clk 0:00:45]} 31. Rxa6 {[%clk 0:01:13]}  Rxa6 {[%clk 0:00:42]} 32. Qxa6 {[%clk 0:01:14]}  Qxe5 {[%clk 0:00:42]} 33. Re1 {[%clk 0:00:55]}  Qd4+ {[%clk 0:00:09]} 34. Bf2 {[%clk 0:00:54]}  Qd5 {[%clk 0:00:09]} 35. g6 {[%clk 0:00:52]}  f6 {[%clk 0:00:05]} 36. Qe6+ {[%clk 0:00:45]}  Qxe6 {[%clk 0:00:04]} 37. Rxe6 {[%clk 0:00:45]}  Kf8 {[%clk 0:00:00]} 38. Bd4 {[%clk 0:00:39]} 1-0


[Site "https://www.chess.com"]

[Event "Titled Tuesday Blitz August 1 Early 2023"]
[White "NicolaiMaxime"]
[Black "Sosa, Tomas"]
[BlackFideId "121576"]
[WhiteElo "2497"]
[BlackElo "2820"]
[Result "0-1"]
[Round "4"]
[TimeControl "180+1"]
[Date "2023.08.01"]
[WhiteClock "0:00:05"]
[BlackClock "0:00:41"]
[Board "119"]

1. e4 {[%clk 0:03:00]}  c5 {[%clk 0:02:59]} 2. Nc3 {[%clk 0:02:58]}  Nc6 {[%clk 0:02:59]} 3. Bb5 {[%clk 0:02:55]}  Nd4 {[%clk 0:03:00]} 4. Nf3 {[%clk 0:02:55]}  Nxb5 {[%clk 0:03:00]} 5. Nxb5 {[%clk 0:02:56]}  d6 {[%clk 0:02:59]} 6. d4 {[%clk 0:02:54]}  cxd4 {[%clk 0:02:58]} 7. Nbxd4 {[%clk 0:02:55]}  Nf6 {[%clk 0:02:58]} 8. Qd3 {[%clk 0:02:53]}  g6 {[%clk 0:02:56]} 9. Bg5 {[%clk 0:02:52]}  Bg7 {[%clk 0:02:56]} 10. h4 {[%clk 0:02:52]}  h6 {[%clk 0:02:55]} 11. Bxf6 {[%clk 0:02:51]}  Bxf6 {[%clk 0:02:56]} 12. h5 {[%clk 0:02:52]}  g5 {[%clk 0:02:54]} 13. O-O-O {[%clk 0:02:51]}  Bd7 {[%clk 0:02:49]} 14. Nf5 {[%clk 0:02:46]}  Qa5 {[%clk 0:02:32]} 15. Nxd6+ {[%clk 0:02:10]}  exd6 {[%clk 0:02:31]} 16. Qxd6 {[%clk 0:02:10]}  Be6 {[%clk 0:02:32]} 17. e5 {[%clk 0:01:30]}  Be7 {[%clk 0:02:31]} 18. Qd3 {[%clk 0:01:25]}  Qxa2 {[%clk 0:02:15]} 19. Nd4 {[%clk 0:01:25]}  Bc4 {[%clk 0:01:49]} 20. Qe4 {[%clk 0:01:19]}  Qa1+ {[%clk 0:01:30]} 21. Kd2 {[%clk 0:01:18]}  Qa5+ {[%clk 0:01:30]} 22. c3 {[%clk 0:01:16]}  Bd5 {[%clk 0:01:28]} 23. Qf5 {[%clk 0:01:11]}  Qb6 {[%clk 0:01:26]} 24. Kc1 {[%clk 0:01:09]}  Rd8 {[%clk 0:01:19]} 25. f4 {[%clk 0:01:07]}  gxf4 {[%clk 0:01:19]} 26. Rhe1 {[%clk 0:00:56]}  Be6 {[%clk 0:01:18]} 27. Nxe6 {[%clk 0:00:47]}  Rxd1+ {[%clk 0:01:19]} 28. Rxd1 {[%clk 0:00:46]}  Qxe6 {[%clk 0:01:19]} 29. Qe4 {[%clk 0:00:45]}  O-O {[%clk 0:01:17]} 30. Kb1 {[%clk 0:00:43]}  Bg5 {[%clk 0:01:17]} 31. Rd6 {[%clk 0:00:41]}  Qe7 {[%clk 0:01:13]} 32. Qd5 {[%clk 0:00:33]}  Rd8 {[%clk 0:01:05]} 33. Rxd8+ {[%clk 0:00:33]}  Qxd8 {[%clk 0:01:06]} 34. Qxb7 {[%clk 0:00:33]}  Qe7 {[%clk 0:01:01]} 35. Qe4 {[%clk 0:00:33]}  Kg7 {[%clk 0:01:01]} 36. b4 {[%clk 0:00:31]}  Qe6 {[%clk 0:01:01]} 37. c4 {[%clk 0:00:29]}  Qd7 {[%clk 0:00:57]} 38. Kc2 {[%clk 0:00:27]}  Qa4+ {[%clk 0:00:58]} 39. Kc3 {[%clk 0:00:28]}  Qa1+ {[%clk 0:00:58]} 40. Kb3 {[%clk 0:00:27]}  a5 {[%clk 0:00:56]} 41. bxa5 {[%clk 0:00:21]}  Qxa5 {[%clk 0:00:57]} 42. Qd5 {[%clk 0:00:18]}  Qb6+ {[%clk 0:00:56]} 43. Ka4 {[%clk 0:00:17]}  Qa6+ {[%clk 0:00:55]} 44. Kb4 {[%clk 0:00:16]}  Qb6+ {[%clk 0:00:55]} 45. Ka4 {[%clk 0:00:16]}  Be7 {[%clk 0:00:52]} 46. Qb5 {[%clk 0:00:12]}  Qa7+ {[%clk 0:00:53]} 47. Kb3 {[%clk 0:00:11]}  Qa3+ {[%clk 0:00:52]} 48. Kc2 {[%clk 0:00:11]}  Qa2+ {[%clk 0:00:52]} 49. Kd3 {[%clk 0:00:12]}  Qxg2 {[%clk 0:00:53]} 50. Qd7 {[%clk 0:00:12]}  Qf1+ {[%clk 0:00:52]} 51. Kd2 {[%clk 0:00:09]}  Bb4+ {[%clk 0:00:50]} 52. Kc2 {[%clk 0:00:10]}  Qxc4+ {[%clk 0:00:50]} 53. Kd1 {[%clk 0:00:10]}  Qb3+ {[%clk 0:00:47]} 54. Ke2 {[%clk 0:00:10]}  Qe3+ {[%clk 0:00:48]} 55. Kd1 {[%clk 0:00:09]}  Qxe5 {[%clk 0:00:44]} 56. Qg4+ {[%clk 0:00:09]}  Qg5 {[%clk 0:00:45]} 57. Qc8 {[%clk 0:00:08]}  f3 {[%clk 0:00:42]} 58. Qh3 {[%clk 0:00:05]}  Qd2# {[%clk 0:00:41]} 0-1


[Site "https://www.chess.com"]

[Event "Titled Tuesday Blitz August 1 Early 2023"]
[White "Dinu, Dumitru-Daniel"]
[Black "Rahman, Masruri"]
[WhiteFideId "1208403"]
[BlackFideId "7101163"]
[WhiteElo "2464"]
[BlackElo "2773"]
[Result "0-1"]
[Round "4"]
[TimeControl "180+1"]
[Date "2023.08.01"]
[WhiteClock "0:00:00"]
[BlackClock "0:00:09"]
[Board "121"]

1. d4 {[%clk 0:03:00]}  e6 {[%clk 0:02:59]} 2. e4 {[%clk 0:02:56]}  d5 {[%clk 0:02:59]} 3. exd5 {[%clk 0:02:56]}  exd5 {[%clk 0:02:58]} 4. Nf3 {[%clk 0:02:57]}  Nc6 {[%clk 0:02:58]} 5. Bb5 {[%clk 0:02:56]}  Bd6 {[%clk 0:02:54]} 6. O-O {[%clk 0:02:54]}  a6 {[%clk 0:02:52]} 7. Bxc6+ {[%clk 0:02:47]}  bxc6 {[%clk 0:02:53]} 8. c4 {[%clk 0:02:47]}  dxc4 {[%clk 0:02:52]} 9. Qa4 {[%clk 0:02:42]}  Ne7 {[%clk 0:02:52]} 10. Qxc4 {[%clk 0:02:41]}  Be6 {[%clk 0:02:51]} 11. Qd3 {[%clk 0:02:39]}  O-O {[%clk 0:02:46]} 12. Nc3 {[%clk 0:02:38]}  Bf5 {[%clk 0:02:40]} 13. Qc4 {[%clk 0:02:36]}  Be6 {[%clk 0:02:26]} 14. Qd3 {[%clk 0:02:35]}  Bf5 {[%clk 0:02:26]} 15. Qc4 {[%clk 0:02:35]}  Nd5 {[%clk 0:02:17]} 16. Qxc6 {[%clk 0:02:11]}  Nb4 {[%clk 0:02:17]} 17. Qa4 {[%clk 0:02:05]}  Bc2 {[%clk 0:02:16]} 18. b3 {[%clk 0:02:03]}  Bd3 {[%clk 0:02:07]} 19. Rd1 {[%clk 0:01:59]}  Bf5 {[%clk 0:02:04]} 20. a3 {[%clk 0:01:33]}  Nd3 {[%clk 0:01:49]} 21. Qc4 {[%clk 0:01:25]}  Nxc1 {[%clk 0:01:44]} 22. Raxc1 {[%clk 0:01:17]}  Bxa3 {[%clk 0:01:43]} 23. Ra1 {[%clk 0:01:16]}  Bd6 {[%clk 0:01:41]} 24. Rxa6 {[%clk 0:01:13]}  Rxa6 {[%clk 0:01:37]} 25. Qxa6 {[%clk 0:01:13]}  Bc2 {[%clk 0:01:37]} 26. Rc1 {[%clk 0:01:10]}  Bxb3 {[%clk 0:01:37]} 27. Nb5 {[%clk 0:01:10]}  Bf4 {[%clk 0:01:36]} 28. Re1 {[%clk 0:00:59]}  Bd5 {[%clk 0:01:18]} 29. Qa3 {[%clk 0:00:47]}  Re8 {[%clk 0:01:17]} 30. Rxe8+ {[%clk 0:00:37]}  Qxe8 {[%clk 0:01:18]} 31. Nc3 {[%clk 0:00:36]}  Bd6 {[%clk 0:00:59]} 32. Qb2 {[%clk 0:00:28]}  Ba8 {[%clk 0:00:38]} 33. Nb5 {[%clk 0:00:14]}  Bf4 {[%clk 0:00:31]} 34. Nc3 {[%clk 0:00:10]}  h6 {[%clk 0:00:24]} 35. Ne2 {[%clk 0:00:08]}  Bd6 {[%clk 0:00:22]} 36. Ne5 {[%clk 0:00:08]}  Bd5 {[%clk 0:00:15]} 37. Nf4 {[%clk 0:00:06]}  Be4 {[%clk 0:00:13]} 38. f3 {[%clk 0:00:06]}  Ba8 {[%clk 0:00:13]} 39. Nfd3 {[%clk 0:00:05]}  f6 {[%clk 0:00:11]} 40. Qa2+ {[%clk 0:00:05]}  Kh7 {[%clk 0:00:10]} 41. Nc4 {[%clk 0:00:02]}  Bd5 {[%clk 0:00:07]} 42. Qc2 {[%clk 0:00:02]}  Qc6 {[%clk 0:00:03]} 43. Nde5+ {[%clk 0:00:02]}  Be4 {[%clk 0:00:01]} 44. Qxe4+ {[%clk 0:00:02]}  Qxe4 {[%clk 0:00:01]} 45. fxe4 {[%clk 0:00:03]}  fxe5 {[%clk 0:00:02]} 46. dxe5 {[%clk 0:00:04]}  Bc5+ {[%clk 0:00:02]} 47. Kf1 {[%clk 0:00:04]}  Kg8 {[%clk 0:00:03]} 48. Ke2 {[%clk 0:00:05]}  Kf7 {[%clk 0:00:04]} 49. Kd3 {[%clk 0:00:05]}  Ke6 {[%clk 0:00:05]} 50. Nd2 {[%clk 0:00:06]}  Be7 {[%clk 0:00:05]} 51. Nf3 {[%clk 0:00:06]}  g5 {[%clk 0:00:05]} 52. h3 {[%clk 0:00:06]}  h5 {[%clk 0:00:06]} 53. g4 {[%clk 0:00:06]}  h4 {[%clk 0:00:07]} 54. Kc4 {[%clk 0:00:06]}  Bd8 {[%clk 0:00:07]} 55. Kc5 {[%clk 0:00:06]}  Kd7 {[%clk 0:00:07]} 56. Kd5 {[%clk 0:00:06]}  Be7 {[%clk 0:00:08]} 57. e6+ {[%clk 0:00:07]}  Ke8 {[%clk 0:00:08]} 58. Ne5 {[%clk 0:00:07]}  Bd6 {[%clk 0:00:08]} 59. Nf7 {[%clk 0:00:07]}  Bf4 {[%clk 0:00:09]} 60. e5 {[%clk 0:00:07]}  Ke7 {[%clk 0:00:09]} 61. Nh6 {[%clk 0:00:07]}  c6+ {[%clk 0:00:09]} 62. Kxc6 {[%clk 0:00:07]}  Kxe6 {[%clk 0:00:10]} 63. Nf5 {[%clk 0:00:07]}  Kxe5 {[%clk 0:00:11]} 64. Kc5 {[%clk 0:00:07]}  Ke4 {[%clk 0:00:11]} 65. Kc4 {[%clk 0:00:08]}  Kf3 {[%clk 0:00:12]} 66. Kd3 {[%clk 0:00:08]}  Kg2 {[%clk 0:00:12]} 67. Ke2 {[%clk 0:00:08]}  Be5 {[%clk 0:00:10]} 68. Ne3+ {[%clk 0:00:08]}  Kxh3 {[%clk 0:00:11]} 69. Kf3 {[%clk 0:00:09]}  Kh2 {[%clk 0:00:10]} 70. Nf1+ {[%clk 0:00:08]}  Kg1 {[%clk 0:00:10]} 71. Nd2 {[%clk 0:00:05]}  h3 {[%clk 0:00:10]} 72. Ke4 {[%clk 0:00:05]}  Bf4 {[%clk 0:00:08]} 73. Nf3+ {[%clk 0:00:00]}  Kf2 {[%clk 0:00:09]} 0-1


[Site "https://www.chess.com"]

[Event "Titled Tuesday Blitz August 1 Early 2023"]
[White "Taboas Rodriguez, Daniel"]
[Black "Gaal, Zsoka"]
[WhiteFideId "2208466"]
[BlackFideId "777765"]
[WhiteElo "2624"]
[BlackElo "2455"]
[Result "0-1"]
[Round "4"]
[TimeControl "180+1"]
[Date "2023.08.01"]
[WhiteClock "0:00:01"]
[BlackClock "0:00:41"]
[Board "124"]

1. d4 {[%clk 0:02:59]}  Nf6 {[%clk 0:02:57]} 2. Nf3 {[%clk 0:02:59]}  c5 {[%clk 0:02:53]} 3. d5 {[%clk 0:02:59]}  e6 {[%clk 0:02:53]} 4. c4 {[%clk 0:03:00]}  exd5 {[%clk 0:02:53]} 5. cxd5 {[%clk 0:03:01]}  d6 {[%clk 0:02:54]} 6. e4 {[%clk 0:03:01]}  g6 {[%clk 0:02:53]} 7. Nc3 {[%clk 0:03:01]}  Bg7 {[%clk 0:02:53]} 8. h3 {[%clk 0:03:01]}  O-O {[%clk 0:02:53]} 9. Bd3 {[%clk 0:03:01]}  Ne8 {[%clk 0:02:45]} 10. O-O {[%clk 0:03:01]}  a6 {[%clk 0:02:42]} 11. a4 {[%clk 0:03:00]}  Nd7 {[%clk 0:02:43]} 12. Bg5 {[%clk 0:03:00]}  f6 {[%clk 0:02:35]} 13. Bf4 {[%clk 0:02:59]}  Ne5 {[%clk 0:02:35]} 14. Be2 {[%clk 0:02:50]}  f5 {[%clk 0:02:33]} 15. Bxe5 {[%clk 0:02:13]}  dxe5 {[%clk 0:02:31]} 16. d6 {[%clk 0:02:04]}  Qxd6 {[%clk 0:02:24]} 17. Bc4+ {[%clk 0:02:00]}  Kh8 {[%clk 0:02:20]} 18. Ng5 {[%clk 0:02:00]}  Qf6 {[%clk 0:02:09]} 19. Qd2 {[%clk 0:01:24]}  Nc7 {[%clk 0:01:48]} 20. Rad1 {[%clk 0:01:22]}  h6 {[%clk 0:01:47]} 21. Nf3 {[%clk 0:00:50]}  Be6 {[%clk 0:01:45]} 22. Bxe6 {[%clk 0:00:45]}  Nxe6 {[%clk 0:01:38]} 23. Nd5 {[%clk 0:00:40]}  Qf7 {[%clk 0:01:38]} 24. Rfe1 {[%clk 0:00:37]}  Nd4 {[%clk 0:01:34]} 25. Nxd4 {[%clk 0:00:37]}  cxd4 {[%clk 0:01:33]} 26. Nb6 {[%clk 0:00:24]}  Rae8 {[%clk 0:01:26]} 27. Rc1 {[%clk 0:00:24]}  Bf6 {[%clk 0:01:11]} 28. Qd3 {[%clk 0:00:22]}  Bh4 {[%clk 0:01:03]} 29. g3 {[%clk 0:00:20]}  fxe4 {[%clk 0:01:03]} 30. Qe2 {[%clk 0:00:18]}  d3 {[%clk 0:00:53]} 31. Qxe4 {[%clk 0:00:12]}  Qxf2+ {[%clk 0:00:53]} 32. Kh1 {[%clk 0:00:13]}  d2 {[%clk 0:00:50]} 33. gxh4 {[%clk 0:00:12]}  dxe1=Q+ {[%clk 0:00:42]} 34. Rxe1 {[%clk 0:00:12]}  Qxb6 {[%clk 0:00:41]} 35. Qg4 {[%clk 0:00:01]}  Qf6 {[%clk 0:00:41]} 0-1


[Site "https://www.chess.com"]